[Event "Open NK Rapid 2025"]
[Site "Helmond, Netherlands"]
[Date "2025.05.03"]
[Round "2.23"]
[White "Jansen, Kay"]
[Black "Kools, Thomas"]
[Result "0-1"]
[TimeControl "15+5"]
[BlackFideId "1054759"]
[WhiteElo "1828"]
[BlackElo "2094"]

1. e4 {[%clk 00:15:08]} {[%emt 00:00:02]} c5 {[%clk 00:15:09]} {[%emt
00:00:02]} 2. Nf3 {[%clk 00:15:10]} {[%emt 00:00:03]} e6 {[%clk 00:15:12]}
{[%emt 00:00:02]} 3. b3 {[%clk 00:15:13]} {[%emt 00:00:02]} a6 {[%clk
00:15:15]} {[%emt 00:00:02]} 4. g3 {[%clk 00:15:12]} {[%emt 00:00:05]} Nc6
{[%clk 00:15:10]} {[%emt 00:00:11]} 5. Bg2 {[%clk 00:15:14]} {[%emt 00:00:02]}
e5 {[%clk 00:14:44]} {[%emt 00:00:31]} 6. Bb2 {[%clk 00:15:09]} {[%emt
00:00:10]} g6 {[%clk 00:14:37]} {[%emt 00:00:12]} 7. Nxe5 {[%clk 00:14:37]}
{[%emt 00:00:37]} Nxe5 {[%clk 00:14:41]} {[%emt 00:00:02]} 8. Bxe5 {[%clk
00:14:40]} {[%emt 00:00:02]} Nf6 {[%clk 00:14:42]} {[%emt 00:00:04]} 9. O-O
{[%clk 00:14:35]} {[%emt 00:00:10]} Bg7 {[%clk 00:14:45]} {[%emt 00:00:02]} 10.
Bxf6 {[%clk 00:14:16]} {[%emt 00:00:24]} Bxf6 {[%clk 00:14:48]} {[%emt
00:00:02]} 11. Nc3 {[%clk 00:14:18]} {[%emt 00:00:02]} O-O {[%clk 00:14:44]}
{[%emt 00:00:10]} 12. Rb1 {[%clk 00:13:57]} {[%emt 00:00:26]} Bxc3 {[%clk
00:14:21]} {[%emt 00:00:28]} 13. dxc3 {[%clk 00:13:59]} {[%emt 00:00:03]} Qa5
{[%clk 00:14:24]} {[%emt 00:00:01]} 14. Qd3 {[%clk 00:12:04]} {[%emt 00:02:00]}
Rd8 {[%clk 00:14:15]} {[%emt 00:00:14]} 15. a4 {[%clk 00:11:53]} {[%emt
00:00:17]} d6 {[%clk 00:13:36]} {[%emt 00:00:44]} 16. Rfd1 {[%clk 00:10:58]}
{[%emt 00:01:00]} Be6 {[%clk 00:13:25]} {[%emt 00:00:15]} 17. f4 {[%clk
00:10:05]} {[%emt 00:00:58]} f6 {[%clk 00:12:30]} {[%emt 00:01:00]} 18. f5
{[%clk 00:09:16]} {[%emt 00:00:54]} Bf7 {[%clk 00:12:34]} {[%emt 00:00:01]} 19.
c4 {[%clk 00:09:00]} {[%emt 00:00:23]} Rab8 {[%clk 00:12:21]} {[%emt 00:00:18]}
20. Bh3 {[%clk 00:08:40]} {[%emt 00:00:24]} b5 {[%clk 00:11:57]} {[%emt
00:00:29]} 21. fxg6 {[%clk 00:08:19]} {[%emt 00:00:26]} hxg6 {[%clk 00:11:54]}
{[%emt 00:00:07]} 22. axb5 {[%clk 00:08:01]} {[%emt 00:00:24]} axb5 {[%clk
00:11:55]} {[%emt 00:00:04]} 23. cxb5 {[%clk 00:08:01]} {[%emt 00:00:05]} Rxb5
{[%clk 00:11:40]} {[%emt 00:00:20]} 24. Rf1 {[%clk 00:07:44]} {[%emt 00:00:22]}
Kg7 {[%clk 00:11:15]} {[%emt 00:00:29]} 25. Qf3 {[%clk 00:07:37]} {[%emt
00:00:12]} Rb7 {[%clk 00:10:04]} {[%emt 00:01:17]} 26. Qxf6+ {[%clk 00:07:14]}
{[%emt 00:00:28]} Kh7 {[%clk 00:09:46]} {[%emt 00:00:23]} 27. Be6 {[%clk
00:06:32]} {[%emt 00:00:47]} Rf8 {[%clk 00:09:22]} {[%emt 00:00:29]} 28. Qh4+
{[%clk 00:05:24]} {[%emt 00:01:13]} Kg7 {[%clk 00:09:21]} {[%emt 00:00:06]} 29.
Qf6+ {[%clk 00:05:25]} {[%emt 00:00:04]} Kh7 {[%clk 00:09:24]} {[%emt
00:00:02]} 30. Bxf7 {[%clk 00:05:28]} {[%emt 00:00:02]} Rfxf7 {[%clk 00:09:16]}
{[%emt 00:00:13]} 31. Qxd6 {[%clk 00:05:23]} {[%emt 00:00:10]} Rfd7 {[%clk
00:08:23]} {[%emt 00:00:58]} 32. Qf4 {[%clk 00:05:03]} {[%emt 00:00:25]} Qc3
{[%clk 00:08:11]} {[%emt 00:00:18]} 33. Qh4+ {[%clk 00:03:41]} {[%emt
00:01:25]} Kg7 {[%clk 00:08:11]} {[%emt 00:00:05]} 34. Rfd1 {[%clk 00:02:57]}
{[%emt 00:00:50]} Qe3+ {[%clk 00:08:07]} {[%emt 00:00:09]} 35. Kg2 {[%clk
00:02:30]} {[%emt 00:00:31]} Qe2+ {[%clk 00:08:08]} {[%emt 00:00:05]} 36. Kh3
{[%clk 00:02:29]} {[%emt 00:00:06]} Rxd1 {[%clk 00:08:11]} {[%emt 00:00:02]} 37.
Rxd1 {[%clk 00:02:26]} {[%emt 00:00:08]} Qxd1 {[%clk 00:08:15]} {[%emt
00:00:01]} 38. Qf4 {[%clk 00:02:17]} {[%emt 00:00:13]} Qd4 {[%clk 00:07:53]}
{[%emt 00:00:28]} 39. e5 {[%clk 00:02:03]} {[%emt 00:00:19]} Qxf4 {[%clk
00:07:41]} {[%emt 00:00:17]} 40. gxf4 {[%clk 00:02:07]} {[%emt 00:00:01]} Rd7
{[%clk 00:07:45]} {[%emt 00:00:02]} 41. Kg4 {[%clk 00:02:05]} {[%emt 00:00:06]}
Rd2 {[%clk 00:07:48]} {[%emt 00:00:02]} 42. h4 {[%clk 00:02:02]} {[%emt
00:00:08]} Rxc2 {[%clk 00:07:42]} {[%emt 00:00:10]} 43. h5 {[%clk 00:02:05]}
{[%emt 00:00:02]} gxh5+ {[%clk 00:07:37]} {[%emt 00:00:11]} 44. Kxh5 {[%clk
00:02:09]} {[%emt 00:00:01]} Rc3 {[%clk 00:07:33]} {[%emt 00:00:09]} 45. Kg5
{[%clk 00:02:00]} {[%emt 00:00:14]} Rxb3 {[%clk 00:07:35]} {[%emt 00:00:03]} 46.
e6 {[%clk 00:02:00]} {[%emt 00:00:05]} c4 {[%clk 00:07:32]} {[%emt 00:00:07]}
47. f5 {[%clk 00:02:03]} {[%emt 00:00:03]} Rg3+ {[%clk 00:06:48]} {[%emt
00:00:49]} 48. Kf4 {[%clk 00:02:02]} {[%emt 00:00:06]} Rg1 {[%clk 00:06:51]}
{[%emt 00:00:02]} 49. Ke5 {[%clk 00:01:54]} {[%emt 00:00:13]} Re1+ {[%clk
00:06:53]} {[%emt 00:00:03]} 50. Kd4 {[%clk 00:01:57]} {[%emt 00:00:02]} Kf6
{[%clk 00:06:55]} {[%emt 00:00:02]} 51. Kxc4 {[%clk 00:01:53]} {[%emt
00:00:10]} Kxf5 {[%clk 00:06:58]} {[%emt 00:00:02]} 0-1

[Event "Open NK Rapid 2025"]
[Site "Helmond, Netherlands"]
[Date "2025.05.03"]
[Round "2.24"]
[White "Teianu, Sabin"]
[Black "Nies, Levi"]
[Result "0-1"]
[TimeControl "15+5"]
[WhiteFideId "1095846"]
[BlackFideId "1061275"]
[WhiteElo "2089"]
[BlackElo "1828"]

1. d4 {[%clk 00:15:09]} {[%emt 00:00:01]} d5 {[%clk 00:15:09]} {[%emt
00:00:01]} 2. c4 {[%clk 00:15:13]} e6 {[%clk 00:15:14]} 3. Nc3 {[%clk
00:15:16]} Nf6 {[%clk 00:15:17]} {[%emt 00:00:01]} 4. Nf3 {[%clk 00:15:20]}
{[%emt 00:00:01]} Be7 {[%clk 00:15:21]} {[%emt 00:00:02]} 5. Bf4 {[%clk
00:15:24]} {[%emt 00:00:01]} O-O {[%clk 00:15:24]} {[%emt 00:00:02]} 6. e3
{[%clk 00:15:27]} b6 {[%clk 00:15:27]} {[%emt 00:00:02]} 7. Bd3 {[%clk
00:15:30]} {[%emt 00:00:03]} Bb7 {[%clk 00:15:31]} {[%emt 00:00:02]} 8. cxd5
{[%clk 00:15:33]} Nxd5 {[%clk 00:15:15]} {[%emt 00:00:20]} 9. Nxd5 {[%clk
00:15:36]} {[%emt 00:00:03]} Bxd5 {[%clk 00:15:18]} {[%emt 00:00:02]} 10. Qc2
{[%clk 00:15:35]} {[%emt 00:00:06]} h6 {[%clk 00:14:11]} {[%emt 00:01:12]} 11.
Bxc7 {[%clk 00:15:17]} {[%emt 00:00:22]} Qc8 {[%clk 00:13:58]} {[%emt
00:00:19]} 12. a3 {[%clk 00:14:42]} {[%emt 00:00:40]} Nc6 {[%clk 00:11:51]}
{[%emt 00:02:12]} 13. Bg3 {[%clk 00:14:43]} {[%emt 00:00:03]} Na5 {[%clk
00:11:29]} {[%emt 00:00:27]} 14. O-O {[%clk 00:14:01]} {[%emt 00:00:47]} Qb7
{[%clk 00:11:02]} {[%emt 00:00:33]} 15. e4 {[%clk 00:13:16]} {[%emt 00:00:50]}
Rac8 {[%clk 00:10:42]} {[%emt 00:00:25]} 16. Qe2 {[%clk 00:13:16]} {[%emt
00:00:04]} Bc4 {[%clk 00:10:41]} {[%emt 00:00:07]} 17. Ne5 {[%clk 00:12:24]}
{[%emt 00:00:56]} Bxd3 {[%clk 00:10:14]} {[%emt 00:00:33]} 18. Qxd3 {[%clk
00:12:23]} {[%emt 00:00:06]} Rfd8 {[%clk 00:09:33]} {[%emt 00:00:46]} 19. b4
{[%clk 00:11:48]} {[%emt 00:00:40]} Nc6 {[%clk 00:09:19]} {[%emt 00:00:19]} 20.
Nxc6 {[%clk 00:11:43]} {[%emt 00:00:09]} Qxc6 {[%clk 00:09:08]} {[%emt
00:00:18]} 21. Bf4 {[%clk 00:10:22]} {[%emt 00:01:25]} Qc4 {[%clk 00:07:45]}
{[%emt 00:01:27]} 22. Rfd1 {[%clk 00:10:00]} {[%emt 00:00:27]} g5 {[%clk
00:06:46]} {[%emt 00:01:04]} 23. Be3 {[%clk 00:09:54]} {[%emt 00:00:11]} Bf6
{[%clk 00:05:45]} {[%emt 00:01:08]} 24. e5 {[%clk 00:09:34]} {[%emt 00:00:24]}
Qxd3 {[%clk 00:05:30]} {[%emt 00:00:19]} 25. Rxd3 {[%clk 00:09:37]} {[%emt
00:00:02]} Bxe5 {[%clk 00:05:28]} {[%emt 00:00:08]} 26. Rad1 {[%clk 00:09:17]}
{[%emt 00:00:25]} Bg7 {[%clk 00:05:12]} {[%emt 00:00:21]} 27. d5 {[%clk
00:09:13]} {[%emt 00:00:08]} Rc3 {[%clk 00:03:30]} {[%emt 00:01:48]} 28. Rxc3
{[%clk 00:06:25]} {[%emt 00:02:53]} Bxc3 {[%clk 00:03:34]} {[%emt 00:00:01]} 29.
d6 {[%clk 00:03:32]} {[%emt 00:02:59]} Be5 {[%clk 00:03:37]} {[%emt 00:00:01]}
30. d7 {[%clk 00:02:23]} {[%emt 00:01:13]} Kf8 {[%clk 00:03:35]} {[%emt
00:00:07]} 31. h4 {[%clk 00:01:20]} {[%emt 00:01:09]} f6 {[%clk 00:03:11]}
{[%emt 00:00:29]} 32. hxg5 {[%clk 00:01:05]} {[%emt 00:00:19]} hxg5 {[%clk
00:03:15]} {[%emt 00:00:02]} 33. a4 {[%clk 00:01:09]} Ke7 {[%clk 00:03:17]}
{[%emt 00:00:03]} 34. a5 {[%clk 00:01:13]} {[%emt 00:00:01]} Bc7 {[%clk
00:02:49]} {[%emt 00:00:33]} 35. axb6 {[%clk 00:00:08]} {[%emt 00:01:09]} Bxb6
{[%clk 00:02:31]} {[%emt 00:00:24]} 36. Bc1 {[%clk 00:00:10]} {[%emt 00:00:03]}
Rxd7 {[%clk 00:02:31]} {[%emt 00:00:05]} 37. Rxd7+ {[%clk 00:00:13]} {[%emt
00:00:02]} Kxd7 {[%clk 00:02:36]} 38. Bb2 {[%clk 00:00:16]} f5 {[%clk
00:02:19]} {[%emt 00:00:22]} 39. Kf1 {[%clk 00:00:20]} {[%emt 00:00:01]} Kc6
{[%emt 00:00:09]} 40. Bf6 {[%clk 00:00:15]} {[%emt 00:00:05]} g4 {[%clk
00:02:22]} {[%emt 00:00:02]} 41. f3 {[%clk 00:00:16]} {[%emt 00:00:04]} gxf3
{[%clk 00:02:17]} {[%emt 00:00:11]} 42. gxf3 {[%clk 00:00:19]} {[%emt
00:00:02]} Kb5 {[%clk 00:02:15]} {[%emt 00:00:08]} 43. Be7 {[%clk 00:00:20]}
{[%emt 00:00:02]} Bd4 {[%clk 00:02:14]} {[%emt 00:00:06]} 44. Ke2 {[%clk
00:00:22]} {[%emt 00:00:04]} Bc3 {[%clk 00:02:19]} {[%emt 00:00:01]} 45. Bc5
{[%clk 00:00:09]} {[%emt 00:00:17]} a6 {[%clk 00:02:20]} {[%emt 00:00:04]} 46.
Kd3 {[%clk 00:00:07]} {[%emt 00:00:06]} Bxb4 {[%clk 00:02:24]} {[%emt
00:00:02]} 47. Bd4 {[%clk 00:00:11]} a5 {[%clk 00:02:22]} {[%emt 00:00:06]} 48.
Ba1 {[%clk 00:00:11]} {[%emt 00:00:05]} Bc5 {[%clk 00:02:17]} {[%emt 00:00:11]}
49. Be5 {[%clk 00:00:08]} {[%emt 00:00:08]} a4 {[%clk 00:02:15]} {[%emt
00:00:07]} 50. Kc3 {[%clk 00:00:10]} {[%emt 00:00:03]} Be7 {[%clk 00:01:29]}
{[%emt 00:00:51]} 51. Bg7 {[%clk 00:00:09]} {[%emt 00:00:06]} Kc5 {[%emt
00:00:07]} 52. Be5 {[%clk 00:00:11]} {[%emt 00:00:03]} Kd5 {[%emt 00:00:13]} 53.
f4 Bd6 {[%clk 00:01:29]} {[%emt 00:00:04]} 0-1

[Event "Open NK Rapid 2025"]
[Site "Helmond, Netherlands"]
[Date "2025.05.03"]
[Round "2.25"]
[White "Ruzaykyn, Oleksandr"]
[Black "Uddin, Ahnaf Tajwar"]
[Result "0-1"]
[TimeControl "15+5"]
[WhiteFideId "1058134"]
[BlackFideId "1050842"]
[WhiteElo "1827"]
[BlackElo "2081"]

1. Nf3 {[%clk 00:15:07]} {[%emt 00:00:03]} b6 {[%clk 00:15:09]} {[%emt
00:00:02]} 2. d4 {[%clk 00:14:58]} {[%emt 00:00:13]} Bb7 {[%clk 00:15:12]}
{[%emt 00:00:02]} 3. Bf4 {[%clk 00:14:55]} {[%emt 00:00:08]} e6 {[%clk
00:15:15]} {[%emt 00:00:02]} 4. e3 {[%clk 00:14:52]} {[%emt 00:00:08]} f5
{[%clk 00:15:18]} {[%emt 00:00:02]} 5. h3 {[%clk 00:14:29]} {[%emt 00:00:28]}
Nf6 {[%clk 00:15:21]} {[%emt 00:00:02]} 6. Bd3 {[%clk 00:13:55]} {[%emt
00:00:38]} Be7 {[%clk 00:15:24]} {[%emt 00:00:03]} 7. c4 {[%clk 00:13:35]}
{[%emt 00:00:25]} O-O {[%clk 00:15:23]} {[%emt 00:00:05]} 8. a3 {[%clk
00:12:54]} {[%emt 00:00:47]} Ne4 {[%clk 00:15:16]} {[%emt 00:00:12]} 9. Qc2
{[%clk 00:12:41]} {[%emt 00:00:19]} d6 {[%clk 00:15:12]} {[%emt 00:00:08]} 10.
Nc3 {[%clk 00:12:23]} {[%emt 00:00:23]} Nxc3 {[%clk 00:15:14]} {[%emt
00:00:04]} 11. Qxc3 {[%clk 00:12:15]} {[%emt 00:00:13]} Nd7 {[%clk 00:15:09]}
{[%emt 00:00:09]} 12. b4 {[%clk 00:11:50]} {[%emt 00:00:31]} Bf6 {[%clk
00:15:04]} {[%emt 00:00:09]} 13. Bh2 {[%clk 00:10:00]} {[%emt 00:01:55]} Qe7
{[%clk 00:13:46]} {[%emt 00:01:23]} 14. Qb3 {[%clk 00:09:25]} {[%emt 00:00:40]}
c5 {[%clk 00:13:32]} {[%emt 00:00:19]} 15. bxc5 {[%clk 00:07:14]} {[%emt
00:02:17]} dxc5 {[%clk 00:13:34]} {[%emt 00:00:03]} 16. Be2 {[%clk 00:05:53]}
{[%emt 00:01:26]} cxd4 {[%clk 00:12:56]} {[%emt 00:00:42]} 17. exd4 {[%clk
00:05:56]} {[%emt 00:00:02]} Bxf3 {[%clk 00:12:47]} {[%emt 00:00:13]} 18. Bxf3
{[%clk 00:06:00]} {[%emt 00:00:02]} Bxd4 {[%clk 00:12:23]} {[%emt 00:00:29]} 19.
Rd1 {[%clk 00:05:57]} {[%emt 00:00:08]} Nc5 {[%clk 00:12:20]} {[%emt 00:00:07]}
20. Qa2 {[%clk 00:05:36]} {[%emt 00:00:27]} Bc3+ {[%clk 00:12:16]} {[%emt
00:00:09]} 21. Kf1 {[%clk 00:05:33]} {[%emt 00:00:08]} Rad8 {[%clk 00:12:08]}
{[%emt 00:00:12]} 22. Rc1 {[%clk 00:05:27]} {[%emt 00:00:12]} Rd2 {[%clk
00:11:45]} {[%emt 00:00:27]} 23. Rc2 {[%clk 00:05:25]} {[%emt 00:00:08]} Rfd8
{[%clk 00:11:28]} {[%emt 00:00:22]} 24. g4 {[%clk 00:04:28]} {[%emt 00:01:02]}
Qd7 {[%clk 00:09:48]} {[%emt 00:01:46]} 25. Bf4 {[%clk 00:03:53]} {[%emt
00:00:40]} Qd3+ {[%clk 00:09:46]} {[%emt 00:00:06]} 26. Kg2 {[%clk 00:03:53]}
{[%emt 00:00:05]} Qxc2 {[%clk 00:09:43]} {[%emt 00:00:08]} 27. Qxc2 {[%clk
00:03:27]} {[%emt 00:00:31]} Rxc2 {[%clk 00:09:46]} {[%emt 00:00:02]} 28. gxf5
{[%clk 00:02:29]} {[%emt 00:01:03]} exf5 {[%clk 00:09:35]} {[%emt 00:00:16]} 29.
Bd5+ {[%clk 00:01:59]} {[%emt 00:00:35]} Kf8 {[%clk 00:09:38]} {[%emt
00:00:02]} 30. Bc7 {[%clk 00:01:59]} {[%emt 00:00:05]} Rd7 {[%clk 00:09:26]}
{[%emt 00:00:17]} 31. Bb8 {[%clk 00:01:49]} {[%emt 00:00:16]} Ne4 {[%clk
00:09:07]} {[%emt 00:00:23]} 32. Rd1 {[%clk 00:01:22]} {[%emt 00:00:32]} Rxf2+
{[%clk 00:08:58]} {[%emt 00:00:14]} 33. Kg1 {[%clk 00:01:26]} {[%emt 00:00:01]}
Rd2 {[%clk 00:08:55]} {[%emt 00:00:07]} 34. Rf1 {[%clk 00:01:15]} {[%emt
00:00:17]} Bd4+ {[%clk 00:08:57]} {[%emt 00:00:03]} 35. Kh1 {[%clk 00:01:19]}
{[%emt 00:00:01]} Ng3+ {[%clk 00:09:00]} {[%emt 00:00:02]} 36. Bxg3 {[%clk
00:01:22]} {[%emt 00:00:02]} g6 {[%clk 00:08:26]} {[%emt 00:00:40]} 37. Be1
{[%clk 00:01:25]} {[%emt 00:00:01]} Rd3 {[%clk 00:08:16]} {[%emt 00:00:15]} 38.
Kg2 {[%clk 00:00:57]} {[%emt 00:00:32]} Kg7 {[%clk 00:07:46]} {[%emt 00:00:37]}
39. Rf4 {[%clk 00:00:53]} {[%emt 00:00:09]} Be5 {[%clk 00:07:39]} {[%emt
00:00:11]} 40. Rf1 {[%clk 00:00:27]} {[%emt 00:00:31]} Rxa3 {[%clk 00:07:16]}
{[%emt 00:00:28]} 41. Bb4 {[%clk 00:00:31]} {[%emt 00:00:01]} Rb3 {[%clk
00:07:08]} {[%emt 00:00:13]} 42. Be1 {[%clk 00:00:19]} {[%emt 00:00:18]} Re7
{[%clk 00:06:33]} {[%emt 00:00:40]} 43. Bh4 {[%clk 00:00:22]} {[%emt 00:00:02]}
Bf6 {[%clk 00:06:34]} {[%emt 00:00:04]} 44. Bf2 {[%clk 00:00:22]} {[%emt
00:00:05]} Rb2 {[%clk 00:06:32]} {[%emt 00:00:06]} 45. Kg1 {[%clk 00:00:25]}
{[%emt 00:00:03]} Ree2 {[%clk 00:06:09]} {[%emt 00:00:27]} 46. Bf3 {[%clk
00:00:11]} {[%emt 00:00:20]} Rxf2 {[%clk 00:06:03]} {[%emt 00:00:11]} 0-1

[Event "Open NK Rapid 2025"]
[Site "Helmond, Netherlands"]
[Date "2025.05.03"]
[Round "3.1"]
[White "Margaryan, Aren"]
[Black "Fridman, Daniel"]
[Result "0-1"]
[TimeControl "15+5"]
[WhiteFideId "40105075"]
[BlackFideId "11600454"]
[WhiteElo "2054"]
[BlackElo "2539"]

1. e4 {[%clk 00:15:07]} {[%emt 00:00:03]} c6 {[%clk 00:15:08]} {[%emt
00:00:02]} 2. Nf3 {[%clk 00:15:09]} {[%emt 00:00:03]} d5 {[%clk 00:15:11]}
{[%emt 00:00:01]} 3. Nc3 {[%clk 00:15:12]} {[%emt 00:00:02]} Bg4 {[%clk
00:15:13]} {[%emt 00:00:03]} 4. Be2 {[%clk 00:15:15]} {[%emt 00:00:02]} e6
{[%clk 00:15:15]} {[%emt 00:00:03]} 5. O-O {[%clk 00:15:17]} {[%emt 00:00:04]}
Nf6 {[%clk 00:15:18]} {[%emt 00:00:02]} 6. exd5 {[%clk 00:14:59]} {[%emt
00:00:23]} cxd5 {[%clk 00:15:20]} {[%emt 00:00:02]} 7. d4 {[%clk 00:15:00]}
{[%emt 00:00:05]} Nc6 {[%clk 00:15:23]} {[%emt 00:00:03]} 8. h3 {[%clk
00:14:51]} {[%emt 00:00:13]} Bxf3 {[%clk 00:15:25]} {[%emt 00:00:03]} 9. Bxf3
{[%clk 00:14:55]} {[%emt 00:00:01]} Bd6 {[%clk 00:15:26]} {[%emt 00:00:04]} 10.
Re1 {[%clk 00:14:53]} {[%emt 00:00:07]} Bb4 {[%clk 00:15:16]} {[%emt 00:00:16]}
11. Bg5 {[%clk 00:14:18]} {[%emt 00:00:38]} O-O {[%clk 00:15:09]} {[%emt
00:00:13]} 12. Qd3 {[%clk 00:14:14]} {[%emt 00:00:09]} h6 {[%clk 00:15:09]}
{[%emt 00:00:06]} 13. Bh4 {[%clk 00:14:01]} {[%emt 00:00:17]} Rc8 {[%clk
00:15:11]} {[%emt 00:00:03]} 14. Be2 {[%clk 00:12:29]} {[%emt 00:01:37]} g5
{[%clk 00:14:41]} {[%emt 00:00:35]} 15. Bg3 {[%clk 00:12:29]} {[%emt 00:00:05]}
Ne4 {[%clk 00:14:43]} {[%emt 00:00:03]} 16. Bf3 {[%clk 00:10:59]} {[%emt
00:01:35]} Nxg3 {[%clk 00:14:35]} {[%emt 00:00:13]} 17. fxg3 {[%clk 00:11:01]}
{[%emt 00:00:03]} Nxd4 {[%clk 00:14:37]} {[%emt 00:00:03]} 18. Bh5 {[%clk
00:10:24]} {[%emt 00:00:41]} Nf5 {[%clk 00:14:17]} {[%emt 00:00:26]} 19. g4
{[%clk 00:10:00]} {[%emt 00:00:30]} Ng7 {[%clk 00:13:14]} {[%emt 00:01:07]} 20.
Re2 {[%clk 00:09:10]} {[%emt 00:00:54]} Bxc3 {[%clk 00:13:04]} {[%emt
00:00:16]} 21. bxc3 {[%clk 00:09:13]} {[%emt 00:00:02]} Qb6+ {[%clk 00:13:06]}
{[%emt 00:00:03]} 22. Kh1 {[%clk 00:09:12]} {[%emt 00:00:05]} Qb2 {[%clk
00:13:09]} {[%emt 00:00:03]} 23. Rf1 {[%clk 00:09:10]} {[%emt 00:00:07]} Qxc3
{[%clk 00:13:10]} {[%emt 00:00:04]} 24. Qd1 {[%clk 00:08:29]} {[%emt 00:00:46]}
Rc4 {[%clk 00:12:54]} {[%emt 00:00:21]} 25. Rf3 {[%clk 00:08:13]} {[%emt
00:00:21]} Qa5 {[%clk 00:12:22]} {[%emt 00:00:37]} 26. Rf6 {[%clk 00:07:55]}
{[%emt 00:00:22]} Nxh5 {[%clk 00:12:05]} {[%emt 00:00:23]} 27. gxh5 {[%clk
00:07:57]} {[%emt 00:00:03]} Re4 {[%clk 00:09:15]} {[%emt 00:02:55]} 28. Rxe4
{[%clk 00:07:42]} {[%emt 00:00:20]} dxe4 {[%clk 00:09:17]} {[%emt 00:00:02]} 29.
Qd7 {[%clk 00:07:46]} {[%emt 00:00:02]} Qe5 {[%clk 00:08:51]} {[%emt 00:00:30]}
30. Qe7 {[%clk 00:07:26]} {[%emt 00:00:26]} e3 {[%clk 00:08:41]} {[%emt
00:00:15]} 31. Rf1 {[%clk 00:05:32]} {[%emt 00:01:58]} Qc3 {[%clk 00:08:37]}
{[%emt 00:00:10]} 32. Rxf7 {[%clk 00:04:13]} {[%emt 00:01:24]} Rxf7 {[%clk
00:08:38]} {[%emt 00:00:03]} 33. Qe8+ {[%clk 00:04:13]} {[%emt 00:00:06]} Kg7
{[%clk 00:08:40]} {[%emt 00:00:02]} 34. Qxe6 {[%clk 00:04:16]} {[%emt
00:00:03]} Rf1+ {[%clk 00:08:36]} {[%emt 00:00:08]} 35. Kh2 {[%clk 00:04:17]}
{[%emt 00:00:04]} Qc7+ {[%clk 00:08:40]} {[%emt 00:00:02]} 0-1